{"text_format":"3","workbook":"xlsx","n_sheets":3,"sheets":["Student List","Class Roster","Student Details"],"not_rendered":{"images":2,"defined_names":8},"read":"whole","date_system":"1900"}

{"sheet":"Student List","index":0,"n_rows":8,"n_cols":13,"rows_kept":8,"merged":[[1,2,2,3],[1,4,1,11],[2,4,2,11],[6,12,8,16]]}
[]
[null,null,"Seznam studentů",null,"PŘEJÍT NA TŘÍDNÍ SEZNAM"]
[{"$nulls":4},"PŘEJÍT NA PODROBNOSTI STUDENTA"]
[null,null,"JMÉNO STUDENTA","E-MAIL","TELEFON DOMŮ","MOBILNÍ TELEFON","DATUM NAROZENÍ","NOUZOVÝ KONTAKT","TELEFON NOUZOVÉHO KONTAKTU","OŠETŘUJÍCÍ LÉKAŘ","TELEFON OŠETŘUJÍCÍHO LÉKAŘE","  "]
[null,null,"Jméno 1","E-mailová adresa","Telefon domů","Mobilní telefon","Datum","Kontakt 1","Telefon nouzového kontaktu","Ošetřující lékař 1","Telefon ošetřujícího lékaře"]
[null,null,"Jméno 2","E-mailová adresa","Telefon domů","Mobilní telefon","Datum","Kontakt 2","Telefon nouzového kontaktu","Ošetřující lékař 2","Telefon ošetřujícího lékaře"]
[null,null,"Jméno 3","E-mailová adresa","Telefon domů","Mobilní telefon","Datum","Kontakt 3","Telefon nouzového kontaktu","Ošetřující lékař 3","Telefon ošetřujícího lékaře",null,"Tip: Pokud chcete do tabulky přidat další studenty, přejděte do poslední buňky tabulky a stiskněte klávesu tabulátoru."]
[null,null,"Jméno 4","E-mailová adresa","Telefon domů","Mobilní telefon","Datum","Kontakt 4","Telefon nouzového kontaktu","Ošetřující lékař 4","Telefon ošetřujícího lékaře"]

{"sheet":"Class Roster","index":1,"n_rows":12,"n_cols":7,"rows_kept":12,"merged":[[1,2,2,2],[1,3,2,3],[1,4,1,6],[2,4,2,6]]}
[]
[null,null,"Třídní seznam","Institut grafického designu","PŘEJÍT NA SEZNAM STUDENTŮ"]
[{"$nulls":4},"PŘEJÍT NA PODROBNOSTI STUDENTA"]
[null,null,"KURZ","Název kurzu","DATUM ZAČÁTKU","Datum"]
[null,null,"VYUČUJÍCÍ","Vyučující 1","DATUM KONCE","Datum"]
[null,null,"PŘIHLÁŠENÍ STUDENTI",{"$f":"COUNTA(StudentRoster[JMÉNO STUDENTA])","v":4}]
[]
[null,null,"JMÉNO STUDENTA","E-MAIL","TELEFON DOMŮ","MOBILNÍ TELEFON","  "]
[null,null,"Jméno 1",{"$f":"IFERROR(VLOOKUP(StudentRoster[[#This Row],[STUDENT NAME]],Students[],2),\"\")","v":"Email address"},{"$f":"IFERROR(VLOOKUP(StudentRoster[[#This Row],[STUDENT NAME]],Students[],3),\"\")","v":"Home phone"},{"$f":"IFERROR(VLOOKUP(StudentRoster[[#This Row],[STUDENT NAME]],Students[],4),\"\")","v":"Cell phone"}]
[null,null,"Jméno 2",{"$f":"IFERROR(VLOOKUP(StudentRoster[[#This Row],[STUDENT NAME]],Students[],2),\"\")","v":"Email address"},{"$f":"IFERROR(VLOOKUP(StudentRoster[[#This Row],[STUDENT NAME]],Students[],3),\"\")","v":"Home phone"},{"$f":"IFERROR(VLOOKUP(StudentRoster[[#This Row],[STUDENT NAME]],Students[],4),\"\")","v":"Cell phone"}]
[null,null,"Jméno 3",{"$f":"IFERROR(VLOOKUP(StudentRoster[[#This Row],[STUDENT NAME]],Students[],2),\"\")","v":"Email address"},{"$f":"IFERROR(VLOOKUP(StudentRoster[[#This Row],[STUDENT NAME]],Students[],3),\"\")","v":"Home phone"},{"$f":"IFERROR(VLOOKUP(StudentRoster[[#This Row],[STUDENT NAME]],Students[],4),\"\")","v":"Cell phone"}]
[null,null,"Jméno 4",{"$f":"IFERROR(VLOOKUP(StudentRoster[[#This Row],[STUDENT NAME]],Students[],2),\"\")","v":"Email address"},{"$f":"IFERROR(VLOOKUP(StudentRoster[[#This Row],[STUDENT NAME]],Students[],3),\"\")","v":"Home phone"},{"$f":"IFERROR(VLOOKUP(StudentRoster[[#This Row],[STUDENT NAME]],Students[],4),\"\")","v":"Cell phone"}]

{"sheet":"Student Details","index":2,"n_rows":13,"n_cols":4,"rows_kept":13,"merged":[[1,2,2,2],[1,3,1,4],[2,3,2,4],[3,2,3,3]]}
[]
[null,null,"Podrobnosti studenta","PŘEJÍT NA SEZNAM STUDENTŮ"]
[{"$nulls":3},"PŘEJÍT NA TŘÍDNÍ SEZNAM"]
[null,null,"TIP: POKUD CHCETE AKTUALIZOVAT PODROBNOSTI STUDENTA, VYBERTE JEHO JMÉNO V ROZEVÍRACÍM SEZNAMU V BUŇCE D5."]
[null,null,"JMÉNO STUDENTA","Jméno 1"]
[null,null,"E-MAIL",{"$f":"IFERROR(VLOOKUP(StudentName,Students[],2,FALSE),\"\")","v":"Email address"}]
[null,null,"TELEFON DOMŮ",{"$f":"IFERROR(VLOOKUP(StudentName,Students[],3,FALSE),\"\")","v":"Home phone"}]
[null,null,"MOBILNÍ TELEFON",{"$f":"IFERROR(VLOOKUP(StudentName,Students[],4,FALSE),\"\")","v":"Cell phone"}]
[null,null,"DATUM NAROZENÍ",{"$f":"IFERROR(VLOOKUP(StudentName,Students[],5,FALSE),\"\")","v":"Date"}]
[null,null,"NOUZOVÝ KONTAKT",{"$f":"IFERROR(VLOOKUP(StudentName,Students[],6,FALSE),\"\")","v":"Contact 1"}]
[null,null,"TELEFON NOUZOVÉHO KONTAKTU",{"$f":"IFERROR(VLOOKUP(StudentName,Students[],7,FALSE),\"\")","v":"Emergency phone"}]
[null,null,"OŠETŘUJÍCÍ LÉKAŘ",{"$f":"IFERROR(VLOOKUP(StudentName,Students[],8,FALSE),\"\")","v":"Physician 1"}]
[null,null,"TELEFON OŠETŘUJÍCÍHO LÉKAŘE",{"$f":"IFERROR(VLOOKUP(StudentName,Students[],9,FALSE),\"\")","v":"Physician phone"}]